[Event "Titled Tuesday Blitz April 18 Early 2023"]
[White "Koridze, Lile"]
[Black "Osuna Vega, Enrique"]
[WhiteFideId "13612514"]
[BlackFideId "2219549"]
[WhiteElo "2047"]
[BlackElo "2138"]
[Result "1-0"]
[Round "07"]
[TimeControl "180+2"]
[Date "2023.04.18"]
[WhiteClock "0:00:13"]
[BlackClock "0:00:03"]

1. d4 {[%clk 0:03:00]}  c6 {[%clk 0:02:54]} 2. c4 {[%clk 0:03:00]}  b5 {[%clk 0:02:54]} 3. e3 {[%clk 0:02:54]}  bxc4 {[%clk 0:02:53]} 4. Bxc4 {[%clk 0:02:54]}  d5 {[%clk 0:02:54]} 5. Bd3 {[%clk 0:02:53]}  e6 {[%clk 0:02:52]} 6. Nf3 {[%clk 0:02:53]}  Nf6 {[%clk 0:02:52]} 7. O-O {[%clk 0:02:53]}  c5 {[%clk 0:02:52]} 8. dxc5 {[%clk 0:02:52]}  Bxc5 {[%clk 0:02:53]} 9. b3 {[%clk 0:02:47]}  O-O {[%clk 0:02:52]} 10. Bb2 {[%clk 0:02:47]}  Ba6 {[%clk 0:02:42]} 11. Nc3 {[%clk 0:02:36]}  Bxd3 {[%clk 0:02:38]} 12. Qxd3 {[%clk 0:02:36]}  Nbd7 {[%clk 0:02:38]} 13. e4 {[%clk 0:02:31]}  dxe4 {[%clk 0:02:22]} 14. Nxe4 {[%clk 0:02:29]}  Nxe4 {[%clk 0:02:21]} 15. Qxe4 {[%clk 0:02:30]}  Nf6 {[%clk 0:02:19]} 16. Qh4 {[%clk 0:02:27]}  Be7 {[%clk 0:02:19]} 17. Rad1 {[%clk 0:02:23]}  Qa5 {[%clk 0:02:13]} 18. a3 {[%clk 0:02:09]}  Rfd8 {[%clk 0:02:08]} 19. b4 {[%clk 0:02:03]}  Qa4 {[%clk 0:02:02]} 20. Rd2 {[%clk 0:01:09]}  Rxd2 {[%clk 0:01:53]} 21. Nxd2 {[%clk 0:01:09]}  Qc2 {[%clk 0:01:45]} 22. Bc1 {[%clk 0:00:48]}  Rc8 {[%clk 0:01:35]} 23. Qd4 {[%clk 0:00:45]}  Rc7 {[%clk 0:01:13]} 24. h3 {[%clk 0:00:44]}  h6 {[%clk 0:01:12]} 25. Nf3 {[%clk 0:00:41]}  Rd7 {[%clk 0:00:58]} 26. Qe5 {[%clk 0:00:39]}  Rd1 {[%clk 0:00:52]} 27. Be3 {[%clk 0:00:26]}  Rxf1+ {[%clk 0:00:47]} 28. Kxf1 {[%clk 0:00:25]}  Qd3+ {[%clk 0:00:44]} 29. Ke1 {[%clk 0:00:25]}  Qxa3 {[%clk 0:00:41]} 30. Qb8+ {[%clk 0:00:24]}  Kh7 {[%clk 0:00:39]} 31. Bd2 {[%clk 0:00:24]}  Ne4 {[%clk 0:00:19]} 32. b5 {[%clk 0:00:22]}  Nxd2 {[%clk 0:00:16]} 33. Nxd2 {[%clk 0:00:22]}  Bb4 {[%clk 0:00:10]} 34. Qd8 {[%clk 0:00:13]}  Qc1+ {[%clk 0:00:08]} 35. Ke2 {[%clk 0:00:12]}  Bxd2 {[%clk 0:00:07]} 36. Qxd2 {[%clk 0:00:13]}  Qc4+ {[%clk 0:00:07]} 37. Qd3+ {[%clk 0:00:11]}  Qxd3+ {[%clk 0:00:04]} 38. Kxd3 {[%clk 0:00:12]}  Kg6 {[%clk 0:00:03]} 39. Kc4 {[%clk 0:00:13]}  Kf5 {[%clk 0:00:03]} 40. Kc5 {[%clk 0:00:13]} 1-0


[Site "https://www.chess.com"]

[Event "Titled Tuesday Blitz April 18 Early 2023"]
[White "Flis, Pawel"]
[Black "Marcziter, Dmitrii"]
[WhiteFideId "1112864"]
[BlackFideId "13900765"]
[WhiteElo "1822"]
[BlackElo "2162"]
[Result "0-1"]
[Round "07"]
[TimeControl "180+2"]
[Date "2023.04.18"]
[WhiteClock "0:02:28"]
[BlackClock "0:01:28"]

1. e4 {[%clk 0:03:00]}  c5 {[%clk 0:01:38]} 2. Nf3 {[%clk 0:02:59]}  a6 {[%clk 0:01:38]} 3. c3 {[%clk 0:02:56]}  d5 {[%clk 0:01:37]} 4. exd5 {[%clk 0:02:54]}  Qxd5 {[%clk 0:01:38]} 5. d4 {[%clk 0:02:54]}  Nf6 {[%clk 0:01:39]} 6. Be2 {[%clk 0:02:53]}  Bg4 {[%clk 0:01:40]} 7. O-O {[%clk 0:02:52]}  e6 {[%clk 0:01:40]} 8. h3 {[%clk 0:02:52]}  Bh5 {[%clk 0:01:39]} 9. Be3 {[%clk 0:02:49]}  cxd4 {[%clk 0:01:40]} 10. Nxd4 {[%clk 0:02:43]}  Bxe2 {[%clk 0:01:39]} 11. Qxe2 {[%clk 0:02:40]}  Nc6 {[%clk 0:01:39]} 12. Nxc6 {[%clk 0:02:39]}  Qxc6 {[%clk 0:01:37]} 13. Nd2 {[%clk 0:02:38]}  Be7 {[%clk 0:01:37]} 14. Qc4 {[%clk 0:02:37]}  Qd5 {[%clk 0:01:33]} 15. Rad1 {[%clk 0:02:34]}  O-O {[%clk 0:01:32]} 16. Qb3 {[%clk 0:02:30]}  Qc6 {[%clk 0:01:30]} 17. Qd5 {[%clk 0:02:28]}  Nxd5 {[%clk 0:01:28]} 0-1


[Site "https://www.chess.com"]

[Event "Titled Tuesday Blitz April 18 Early 2023"]
[White "Ramirez Vido, Robert Yorisan"]
[Black "Barwinska, Ewa"]
[WhiteFideId "3513823"]
[BlackFideId "21833761"]
[WhiteElo "2428"]
[BlackElo "1908"]
[Result "1-0"]
[Round "07"]
[TimeControl "180+2"]
[Date "2023.04.18"]
[WhiteClock "0:00:05"]
[BlackClock "0:00:03"]

1. f4 {[%clk 0:02:55]}  Nf6 {[%clk 0:02:58]} 2. Nf3 {[%clk 0:02:53]}  g6 {[%clk 0:02:58]} 3. g3 {[%clk 0:02:54]}  Bg7 {[%clk 0:02:59]} 4. Bg2 {[%clk 0:02:54]}  c5 {[%clk 0:02:58]} 5. d3 {[%clk 0:02:55]}  Nc6 {[%clk 0:02:57]} 6. O-O {[%clk 0:02:55]}  O-O {[%clk 0:02:58]} 7. e4 {[%clk 0:02:55]}  Qc7 {[%clk 0:02:44]} 8. Nc3 {[%clk 0:02:51]}  d6 {[%clk 0:02:20]} 9. h3 {[%clk 0:02:49]}  a6 {[%clk 0:02:17]} 10. Be3 {[%clk 0:02:47]}  b5 {[%clk 0:02:17]} 11. g4 {[%clk 0:02:42]}  b4 {[%clk 0:02:11]} 12. Ne2 {[%clk 0:02:33]}  Bb7 {[%clk 0:01:59]} 13. Qe1 {[%clk 0:02:27]}  e5 {[%clk 0:01:52]} 14. f5 {[%clk 0:02:25]}  Nd4 {[%clk 0:01:51]} 15. Rc1 {[%clk 0:01:49]}  d5 {[%clk 0:01:40]} 16. g5 {[%clk 0:01:27]}  Nd7 {[%clk 0:01:25]} 17. f6 {[%clk 0:01:25]}  Bh8 {[%clk 0:01:25]} 18. Nexd4 {[%clk 0:01:11]}  cxd4 {[%clk 0:01:23]} 19. Bd2 {[%clk 0:01:05]}  dxe4 {[%clk 0:01:20]} 20. dxe4 {[%clk 0:01:04]}  Qb6 {[%clk 0:01:17]} 21. Bxb4 {[%clk 0:00:58]}  Rfc8 {[%clk 0:01:07]} 22. Kh1 {[%clk 0:00:56]}  a5 {[%clk 0:01:06]} 23. Bd2 {[%clk 0:00:49]}  Qxb2 {[%clk 0:00:59]} 24. Nh2 {[%clk 0:00:49]}  Rxc2 {[%clk 0:00:54]} 25. Rxc2 {[%clk 0:00:48]}  Qxc2 {[%clk 0:00:55]} 26. Bxa5 {[%clk 0:00:40]}  h5 {[%clk 0:00:43]} 27. Rf2 {[%clk 0:00:30]}  Qd3 {[%clk 0:00:34]} 28. Bb4 {[%clk 0:00:24]}  Nb6 {[%clk 0:00:26]} 29. Bf1 {[%clk 0:00:21]}  Qxe4+ {[%clk 0:00:21]} 30. Qxe4 {[%clk 0:00:18]}  Bxe4+ {[%clk 0:00:22]} 31. Bg2 {[%clk 0:00:18]}  Bxg2+ {[%clk 0:00:22]} 32. Kxg2 {[%clk 0:00:19]}  Nd5 {[%clk 0:00:22]} 33. Bd6 {[%clk 0:00:17]}  Ne3+ {[%clk 0:00:14]} 34. Kf3 {[%clk 0:00:17]}  Nc4 {[%clk 0:00:14]} 35. Bb4 {[%clk 0:00:13]}  Rb8 {[%clk 0:00:13]} 36. a3 {[%clk 0:00:12]}  Re8 {[%clk 0:00:12]} 37. Ke4 {[%clk 0:00:11]}  Nb6 {[%clk 0:00:05]} 38. Nf3 {[%clk 0:00:11]}  Nd7 {[%clk 0:00:05]} 39. Rc2 {[%clk 0:00:11]}  Bxf6 {[%clk 0:00:04]} 40. Rc7 {[%clk 0:00:07]}  Bxg5 {[%clk 0:00:03]} 41. Rxd7 {[%clk 0:00:07]}  Bf4 {[%clk 0:00:04]} 42. Nxd4 {[%clk 0:00:07]}  exd4+ {[%clk 0:00:04]} 43. Kxf4 {[%clk 0:00:08]}  d3 {[%clk 0:00:02]} 44. Rxd3 {[%clk 0:00:07]}  Kh7 {[%clk 0:00:02]} 45. Rd7 {[%clk 0:00:07]}  Kg7 {[%clk 0:00:03]} 46. Bc3+ {[%clk 0:00:07]}  Kf8 {[%clk 0:00:04]} 47. Bb4+ {[%clk 0:00:06]}  Kg7 {[%clk 0:00:03]} 48. a4 {[%clk 0:00:06]}  Ra8 {[%clk 0:00:03]} 49. a5 {[%clk 0:00:05]}  Kg8 {[%clk 0:00:02]} 50. Rd6 {[%clk 0:00:04]}  Kg7 {[%clk 0:00:02]} 51. Ke5 {[%clk 0:00:05]}  f6+ {[%clk 0:00:02]} 52. Kd5 {[%clk 0:00:05]}  g5 {[%clk 0:00:02]} 53. Kc6 {[%clk 0:00:05]}  Kg6 {[%clk 0:00:02]} 54. Kb6 {[%clk 0:00:05]}  Rb8+ {[%clk 0:00:02]} 55. Kc7 {[%clk 0:00:05]}  Rxb4 {[%clk 0:00:03]} 56. a6 {[%clk 0:00:06]}  Ra4 {[%clk 0:00:03]} 57. Kb7 {[%clk 0:00:06]}  Kf5 {[%clk 0:00:03]} 58. a7 {[%clk 0:00:06]}  Ra3 {[%clk 0:00:03]} 59. Rd5+ {[%clk 0:00:06]}  Kg6 {[%clk 0:00:03]} 60. Rd3 {[%clk 0:00:05]}  Ra4 {[%clk 0:00:03]} 61. Rd6 {[%clk 0:00:05]}  g4 {[%clk 0:00:03]} 62. Ra6 {[%clk 0:00:05]}  Rb4+ {[%clk 0:00:02]} 63. Kc7 {[%clk 0:00:06]}  Rc4+ {[%clk 0:00:03]} 64. Kd6 {[%clk 0:00:06]}  Rc8 {[%clk 0:00:03]} 65. hxg4 {[%clk 0:00:05]}  hxg4 {[%clk 0:00:02]} 66. a8=Q {[%clk 0:00:05]}  Rxa8 {[%clk 0:00:03]} 67. Rxa8 {[%clk 0:00:06]}  f5 {[%clk 0:00:02]} 68. Ke5 {[%clk 0:00:06]}  Kg5 {[%clk 0:00:03]} 69. Rg8+ {[%clk 0:00:06]}  Kh4 {[%clk 0:00:02]} 70. Kf4 {[%clk 0:00:07]}  g3 {[%clk 0:00:02]} 71. Rxg3 {[%clk 0:00:07]}  Kh5 {[%clk 0:00:02]} 72. Rg1 {[%clk 0:00:05]}  Kh4 {[%clk 0:00:03]} 73. Rh1# {[%clk 0:00:05]} 1-0


[Site "https://www.chess.com"]

[Event "Titled Tuesday Blitz April 18 Early 2023"]
[White "Zaichenko, Daria"]
[Black "Kohler, Aran"]
[WhiteFideId "4197453"]
[BlackFideId "1002856"]
[WhiteElo "2039"]
[BlackElo "2253"]
[Result "1-0"]
[Round "07"]
[TimeControl "180+2"]
[Date "2023.04.18"]
[WhiteClock "0:01:07"]
[BlackClock "0:00:47"]

1. e4 {[%clk 0:02:56]}  c6 {[%clk 0:02:58]} 2. d4 {[%clk 0:02:54]}  d5 {[%clk 0:02:58]} 3. Nc3 {[%clk 0:02:54]}  dxe4 {[%clk 0:02:58]} 4. Nxe4 {[%clk 0:02:55]}  Bf5 {[%clk 0:02:58]} 5. Ng3 {[%clk 0:02:55]}  Bg6 {[%clk 0:02:59]} 6. h4 {[%clk 0:02:55]}  h6 {[%clk 0:02:59]} 7. h5 {[%clk 0:02:54]}  Bh7 {[%clk 0:02:59]} 8. Nf3 {[%clk 0:02:54]}  Nd7 {[%clk 0:02:58]} 9. Bd3 {[%clk 0:02:55]}  Ngf6 {[%clk 0:02:59]} 10. Bxh7 {[%clk 0:02:43]}  Nxh7 {[%clk 0:03:00]} 11. Bf4 {[%clk 0:02:40]}  e6 {[%clk 0:02:59]} 12. Qd3 {[%clk 0:02:39]}  Nb6 {[%clk 0:02:51]} 13. O-O-O {[%clk 0:02:38]}  Nd5 {[%clk 0:02:49]} 14. Bd2 {[%clk 0:02:37]}  a5 {[%clk 0:02:49]} 15. a3 {[%clk 0:02:33]}  b5 {[%clk 0:02:44]} 16. Kb1 {[%clk 0:02:33]}  Be7 {[%clk 0:02:43]} 17. Ne4 {[%clk 0:02:27]}  Qb6 {[%clk 0:02:37]} 18. Ne5 {[%clk 0:02:20]}  Nhf6 {[%clk 0:02:31]} 19. Rh3 {[%clk 0:02:17]}  O-O {[%clk 0:02:01]} 20. Nxf6+ {[%clk 0:02:02]}  Nxf6 {[%clk 0:01:51]} 21. g4 {[%clk 0:01:56]}  Rfd8 {[%clk 0:01:45]} 22. Be3 {[%clk 0:01:52]}  Nd5 {[%clk 0:01:34]} 23. Rf3 {[%clk 0:01:38]}  f6 {[%clk 0:01:34]} 24. Qg6 {[%clk 0:01:38]}  fxe5 {[%clk 0:01:11]} 25. Bxh6 {[%clk 0:01:32]}  Bf6 {[%clk 0:01:04]} 26. Rxf6 {[%clk 0:01:31]}  Ra7 {[%clk 0:01:05]} 27. Rxe6 {[%clk 0:01:26]}  Nf4 {[%clk 0:00:56]} 28. Re8+ {[%clk 0:01:18]}  Rxe8 {[%clk 0:00:57]} 29. Qxe8+ {[%clk 0:01:18]}  Kh7 {[%clk 0:00:57]} 30. Bxf4 {[%clk 0:01:13]}  exf4 {[%clk 0:00:53]} 31. Re1 {[%clk 0:01:09]}  c5 {[%clk 0:00:47]} 32. Re6 {[%clk 0:01:07]} 1-0


[Site "https://www.chess.com"]

[Event "Titled Tuesday Blitz April 18 Early 2023"]
[White "Karthik Sai Ch"]
[Black "dDobravcan"]
[WhiteFideId "46649484"]
[WhiteElo "2003"]
[BlackElo "2167"]
[Result "1-0"]
[Round "07"]
[TimeControl "180+2"]
[Date "2023.04.18"]
[WhiteClock "0:01:45"]
[BlackClock "0:00:04"]

1. d4 {[%clk 0:02:54]}  d6 {[%clk 0:02:59]} 2. Nf3 {[%clk 0:02:53]}  Bg4 {[%clk 0:02:58]} 3. e4 {[%clk 0:02:53]}  Nf6 {[%clk 0:02:55]} 4. Nc3 {[%clk 0:02:52]}  c6 {[%clk 0:02:55]} 5. Be2 {[%clk 0:02:53]}  e6 {[%clk 0:02:54]} 6. O-O {[%clk 0:02:53]}  d5 {[%clk 0:02:49]} 7. e5 {[%clk 0:02:52]}  Nfd7 {[%clk 0:02:48]} 8. h3 {[%clk 0:02:52]}  Bh5 {[%clk 0:02:47]} 9. a4 {[%clk 0:02:48]}  a5 {[%clk 0:02:43]} 10. g4 {[%clk 0:02:47]}  Bg6 {[%clk 0:02:42]} 11. h4 {[%clk 0:02:44]}  h5 {[%clk 0:02:39]} 12. g5 {[%clk 0:02:44]}  c5 {[%clk 0:02:29]} 13. Bf4 {[%clk 0:02:43]}  Nc6 {[%clk 0:02:25]} 14. Nb5 {[%clk 0:02:41]}  cxd4 {[%clk 0:02:08]} 15. Nbxd4 {[%clk 0:02:39]}  Qb6 {[%clk 0:02:07]} 16. c3 {[%clk 0:02:35]}  Qxb2 {[%clk 0:01:38]} 17. Nb5 {[%clk 0:02:32]}  Rc8 {[%clk 0:01:21]} 18. Ne1 {[%clk 0:02:16]}  Ndxe5 {[%clk 0:01:09]} 19. Nd3 {[%clk 0:02:12]}  Nxd3 {[%clk 0:00:35]} 20. Bxd3 {[%clk 0:02:11]}  Bxd3 {[%clk 0:00:19]} 21. Qxd3 {[%clk 0:02:10]}  Bc5 {[%clk 0:00:15]} 22. Bg3 {[%clk 0:02:01]}  O-O {[%clk 0:00:13]} 23. Rfb1 {[%clk 0:02:00]}  Ne5 {[%clk 0:00:04]} 24. Qf1 {[%clk 0:01:45]} 1-0


[Site "https://www.chess.com"]

[Event "Titled Tuesday Blitz April 18 Early 2023"]
[White "Kiseljova, Marya"]
[Black "Itkis, Boris"]
[WhiteFideId "4155009"]
[BlackFideId "1209167"]
[WhiteElo "1851"]
[BlackElo "2216"]
[Result "0-1"]
[Round "07"]
[TimeControl "180+2"]
[Date "2023.04.18"]
[WhiteClock "0:00:08"]
[BlackClock "0:00:07"]

1. d4 {[%clk 0:03:00]}  Nf6 {[%clk 0:02:57]} 2. c4 {[%clk 0:03:00]}  e6 {[%clk 0:02:57]} 3. Bf4 {[%clk 0:02:59]}  d5 {[%clk 0:02:55]} 4. Nf3 {[%clk 0:02:48]}  Be7 {[%clk 0:02:52]} 5. Nc3 {[%clk 0:02:44]}  c6 {[%clk 0:02:51]} 6. e3 {[%clk 0:02:42]}  Nbd7 {[%clk 0:02:49]} 7. Be2 {[%clk 0:02:36]}  O-O {[%clk 0:02:49]} 8. h3 {[%clk 0:02:33]}  b6 {[%clk 0:02:44]} 9. cxd5 {[%clk 0:02:32]}  cxd5 {[%clk 0:02:31]} 10. O-O {[%clk 0:02:32]}  Bb7 {[%clk 0:02:29]} 11. Rc1 {[%clk 0:02:19]}  Rc8 {[%clk 0:02:27]} 12. Qa4 {[%clk 0:02:16]}  a6 {[%clk 0:01:48]} 13. Qb3 {[%clk 0:01:55]}  b5 {[%clk 0:01:43]} 14. a3 {[%clk 0:01:46]}  Qb6 {[%clk 0:01:20]} 15. Na2 {[%clk 0:01:37]}  Ne4 {[%clk 0:01:17]} 16. Bd3 {[%clk 0:01:17]}  Bd6 {[%clk 0:01:08]} 17. Ne5 {[%clk 0:00:46]}  Bxe5 {[%clk 0:00:37]} 18. Bxe5 {[%clk 0:00:47]}  Nd2 {[%clk 0:00:34]} 19. Qb4 {[%clk 0:00:29]}  Nxf1 {[%clk 0:00:30]} 20. Rxf1 {[%clk 0:00:30]}  Nxe5 {[%clk 0:00:27]} 21. dxe5 {[%clk 0:00:31]}  Qc7 {[%clk 0:00:23]} 22. Qh4 {[%clk 0:00:30]}  g6 {[%clk 0:00:22]} 23. Qf6 {[%clk 0:00:28]}  Qd8 {[%clk 0:00:19]} 24. Qf4 {[%clk 0:00:27]}  Bc6 {[%clk 0:00:16]} 25. Nc3 {[%clk 0:00:26]}  f6 {[%clk 0:00:15]} 26. Ne2 {[%clk 0:00:24]}  fxe5 {[%clk 0:00:15]} 27. Qxe5 {[%clk 0:00:25]}  Qf6 {[%clk 0:00:16]} 28. Qg3 {[%clk 0:00:24]}  Bd7 {[%clk 0:00:13]} 29. b4 {[%clk 0:00:21]}  e5 {[%clk 0:00:12]} 30. h4 {[%clk 0:00:19]}  Bf5 {[%clk 0:00:11]} 31. Bxf5 {[%clk 0:00:15]}  Qxf5 {[%clk 0:00:11]} 32. Nc1 {[%clk 0:00:13]}  Rc2 {[%clk 0:00:09]} 33. Nd3 {[%clk 0:00:13]}  Qxd3 {[%clk 0:00:07]} 34. Qxe5 {[%clk 0:00:13]}  Qf5 {[%clk 0:00:07]} 35. Qd4 {[%clk 0:00:12]}  Rxf2 {[%clk 0:00:06]} 36. Rxf2 {[%clk 0:00:12]}  Qxf2+ {[%clk 0:00:06]} 37. Kh2 {[%clk 0:00:12]}  Qf6 {[%clk 0:00:06]} 38. Qxd5+ {[%clk 0:00:12]}  Kg7 {[%clk 0:00:07]} 39. g3 {[%clk 0:00:11]}  Rf7 {[%clk 0:00:07]} 40. e4 {[%clk 0:00:11]}  Qf2+ {[%clk 0:00:08]} 41. Kh3 {[%clk 0:00:11]}  Qf1+ {[%clk 0:00:07]} 42. Kg4 {[%clk 0:00:11]}  h5+ {[%clk 0:00:07]} 43. Kg5 {[%clk 0:00:11]}  Qc1+ {[%clk 0:00:07]} 44. Qd2 {[%clk 0:00:08]}  Qxd2# {[%clk 0:00:07]} 0-1


[Site "https://www.chess.com"]